[Event "The Kvibergspelen 2024"]
[Site "Kviberg Park Hotel & Conference, Krutvagen 2, Gothenburg, Sweden"]
[Date "2024.09.06"]
[Round "1.11"]
[White "Dingertz, Filip"]
[Black "Mashhadi, Peyman"]
[Result "0-1"]
[TimeControl "15 minutes + 5 seconds per move from move one (Round 1 - 4) / 90 minutes + 30 seconds per move from move one (Round 5 - 8)"]
[WhiteFideId "1757288"]
[BlackFideId "1768581"]
[WhiteElo "1858"]
[BlackElo "2148"]

1. c4 {[%clk 00:15:09]} g6 {[%clk 00:15:07]} {[%emt 00:00:03]} 2. Nc3 {[%clk
00:15:12]} {[%emt 00:00:02]} Bg7 {[%clk 00:15:10]} {[%emt 00:00:01]} 3. g3
{[%clk 00:15:16]} {[%emt 00:00:02]} d6 {[%clk 00:15:12]} {[%emt 00:00:03]} 4.
Bg2 {[%clk 00:15:20]} {[%emt 00:00:01]} Nf6 {[%clk 00:15:14]} {[%emt 00:00:03]}
5. e4 {[%clk 00:15:17]} {[%emt 00:00:09]} O-O {[%clk 00:15:07]} {[%emt
00:00:10]} 6. Nge2 {[%clk 00:15:20]} {[%emt 00:00:02]} c5 {[%clk 00:15:02]}
{[%emt 00:00:11]} 7. O-O {[%clk 00:15:22]} {[%emt 00:00:03]} Nc6 {[%clk
00:14:58]} {[%emt 00:00:09]} 8. d3 {[%clk 00:15:21]} {[%emt 00:00:06]} a6
{[%clk 00:14:37]} {[%emt 00:00:26]} 9. h3 {[%clk 00:15:15]} {[%emt 00:00:10]}
Rb8 {[%clk 00:14:35]} {[%emt 00:00:08]} 10. a4 {[%clk 00:15:19]} {[%emt
00:00:01]} Ne8 {[%clk 00:14:18]} {[%emt 00:00:22]} 11. Be3 {[%clk 00:15:15]}
{[%emt 00:00:08]} Nd4 {[%clk 00:13:58]} {[%emt 00:00:26]} 12. a5 {[%clk
00:14:10]} {[%emt 00:01:10]} b6 {[%clk 00:13:20]} {[%emt 00:00:43]} 13. axb6
{[%clk 00:09:27]} {[%emt 00:04:48]} Rxb6 {[%clk 00:13:07]} {[%emt 00:00:18]} 14.
Na4 {[%clk 00:09:28]} {[%emt 00:00:04]} Rb8 {[%clk 00:13:03]} {[%emt 00:00:09]}
15. Nxd4 {[%clk 00:09:14]} {[%emt 00:00:19]} cxd4 {[%clk 00:12:43]} {[%emt
00:00:25]} 16. Bd2 {[%clk 00:09:15]} {[%emt 00:00:03]} Bd7 {[%clk 00:11:11]}
{[%emt 00:01:38]} 17. b4 {[%clk 00:09:04]} {[%emt 00:00:16]} Nc7 {[%clk
00:10:46]} {[%emt 00:00:29]} 18. Qc2 {[%clk 00:07:22]} {[%emt 00:01:47]} Bc6
{[%clk 00:10:43]} {[%emt 00:00:09]} 19. Rfc1 {[%clk 00:07:06]} {[%emt
00:00:21]} Ba8 {[%clk 00:10:32]} {[%emt 00:00:16]} 20. c5 {[%clk 00:06:40]}
{[%emt 00:00:32]} d5 {[%clk 00:09:30]} {[%emt 00:01:06]} 21. Nb6 {[%clk
00:05:59]} {[%emt 00:00:45]} e6 {[%clk 00:06:10]} {[%emt 00:03:27]} 22. Bf4
{[%clk 00:04:52]} {[%emt 00:01:11]} e5 {[%clk 00:06:03]} {[%emt 00:00:12]} 23.
Bd2 {[%clk 00:04:55]} {[%emt 00:00:01]} dxe4 {[%clk 00:04:55]} {[%emt
00:01:14]} 24. Nxa8 {[%clk 00:04:04]} {[%emt 00:00:56]} Nxa8 {[%clk 00:04:52]}
{[%emt 00:00:09]} 25. dxe4 {[%clk 00:02:48]} {[%emt 00:01:19]} Nc7 {[%clk
00:04:41]} {[%emt 00:00:17]} 26. Bf1 {[%clk 00:02:49]} {[%emt 00:00:04]} Qc8
{[%clk 00:04:22]} {[%emt 00:00:24]} 27. Kh2 {[%clk 00:02:28]} {[%emt 00:00:25]}
Kh8 {[%clk 00:03:59]} {[%emt 00:00:29]} 28. Ra5 {[%clk 00:01:16]} {[%emt
00:01:16]} f5 {[%clk 00:03:24]} {[%emt 00:00:41]} 29. Kg2 {[%clk 00:00:58]}
{[%emt 00:00:24]} Qe6 {[%clk 00:02:07]} {[%emt 00:01:21]} 30. Bc4 {[%clk
00:00:24]} {[%emt 00:00:39]} Qc6 {[%clk 00:02:06]} {[%emt 00:00:06]} 31. Bd3
{[%clk 00:00:26]} {[%emt 00:00:03]} Rf7 {[%clk 00:01:33]} {[%emt 00:00:38]} 32.
f3 {[%clk 00:00:28]} {[%emt 00:00:02]} Rbf8 {[%clk 00:01:27]} {[%emt 00:00:12]}
33. Rf1 {[%clk 00:00:14]} {[%emt 00:00:19]} h5 {[%clk 00:01:10]} {[%emt
00:00:22]} 34. h4 {[%clk 00:00:11]} {[%emt 00:00:08]} f4 {[%clk 00:01:01]}
{[%emt 00:00:14]} 35. Be1 {[%clk 00:00:13]} {[%emt 00:00:04]} Bh6 {[%clk
00:00:56]} {[%emt 00:00:09]} 36. Bc4 {[%clk 00:00:14]} {[%emt 00:00:04]} Rf6
{[%clk 00:00:55]} {[%emt 00:00:06]} 37. g4 {[%clk 00:00:16]} {[%emt 00:00:04]}
hxg4 {[%clk 00:00:58]} {[%emt 00:00:01]} 38. fxg4 {[%clk 00:00:19]} {[%emt
00:00:01]} f3+ {[%clk 00:01:02]} {[%emt 00:00:02]} 39. Kh1 {[%clk 00:00:19]}
{[%emt 00:00:05]} Be3 {[%clk 00:00:39]} {[%emt 00:00:28]} 40. Qh2 {[%clk
00:00:12]} {[%emt 00:00:12]} Qxe4 {[%clk 00:00:25]} {[%emt 00:00:18]} 41. Bf2
{[%clk 00:00:09]} {[%emt 00:00:08]} Bxf2 {[%clk 00:00:24]} {[%emt 00:00:06]} 42.
Qxf2 {[%clk 00:00:12]} {[%emt 00:00:03]} Qxg4 {[%clk 00:00:22]} {[%emt
00:00:06]} 43. Rg1 {[%clk 00:00:14]} {[%emt 00:00:02]} Qh3+ {[%clk 00:00:26]}
{[%emt 00:00:02]} 44. Qh2 {[%clk 00:00:17]} {[%emt 00:00:01]} Qxh2+ {[%clk
00:00:26]} {[%emt 00:00:05]} 45. Kxh2 {[%clk 00:00:21]} {[%emt 00:00:01]} e4
{[%clk 00:00:27]} {[%emt 00:00:04]} 46. Ra2 {[%clk 00:00:08]} {[%emt 00:00:18]}
e3 {[%clk 00:00:21]} {[%emt 00:00:11]} 47. Kg3 {[%clk 00:00:09]} {[%emt
00:00:04]} e2 {[%clk 00:00:14]} {[%emt 00:00:12]} 48. Bxe2 {[%clk 00:00:12]}
{[%emt 00:00:03]} fxe2 {[%clk 00:00:18]} 49. Rxe2 {[%clk 00:00:16]} Nd5 {[%clk
00:00:22]} {[%emt 00:00:01]} 50. Rd2 {[%clk 00:00:11]} {[%emt 00:00:10]} Rf3+
{[%clk 00:00:21]} {[%emt 00:00:06]} 51. Kg2 {[%clk 00:00:14]} {[%emt 00:00:03]}
Ne3+ {[%clk 00:00:24]} {[%emt 00:00:01]} 52. Kh2 {[%clk 00:00:15]} {[%emt
00:00:04]} Nf1+ {[%clk 00:00:26]} {[%emt 00:00:03]} 0-1

[Event "The Kvibergspelen 2024"]
[Site "Kviberg Park Hotel & Conference, Krutvagen 2, Gothenburg, Sweden"]
[Date "2024.09.06"]
[Round "1.12"]
[White "Frank, Anton"]
[Black "Wang, Dawen"]
[Result "1-0"]
[TimeControl "15 minutes + 5 seconds per move from move one (Round 1 - 4) / 90 minutes + 30 seconds per move from move one (Round 5 - 8)"]
[WhiteFideId "1752383"]
[BlackFideId "1756320"]
[WhiteElo "2142"]
[BlackElo "1856"]

1. e4 {[%clk 00:15:08]} c6 {[%clk 00:15:01]} {[%emt 00:00:09]} 2. d4 {[%clk
00:15:12]} {[%emt 00:00:02]} d5 {[%clk 00:15:06]} 3. e5 {[%clk 00:15:15]}
{[%emt 00:00:02]} c5 {[%clk 00:15:07]} {[%emt 00:00:05]} 4. c3 {[%clk
00:15:19]} Nc6 {[%clk 00:15:08]} {[%emt 00:00:04]} 5. Be2 {[%clk 00:15:22]}
{[%emt 00:00:01]} Bf5 {[%clk 00:14:57]} {[%emt 00:00:17]} 6. Nf3 {[%clk
00:15:25]} {[%emt 00:00:03]} cxd4 {[%clk 00:14:56]} {[%emt 00:00:05]} 7. Nxd4
{[%clk 00:15:09]} {[%emt 00:00:21]} Nxd4 8. cxd4 {[%clk 00:15:12]} a6 {[%clk
00:14:05]} {[%emt 00:00:02]} 9. Nc3 {[%clk 00:15:04]} {[%emt 00:00:13]} e6
{[%clk 00:13:10]} {[%emt 00:01:00]} 10. Qa4+ {[%clk 00:14:38]} {[%emt
00:00:31]} Qd7 {[%clk 00:13:13]} {[%emt 00:00:01]} 11. Bb5 {[%clk 00:14:30]}
{[%emt 00:00:13]} axb5 {[%clk 00:12:46]} {[%emt 00:00:33]} 12. Qxa8+ {[%clk
00:14:32]} {[%emt 00:00:03]} Ke7 {[%clk 00:12:39]} {[%emt 00:00:11]} 13. a4
{[%clk 00:13:06]} {[%emt 00:01:32]} f6 {[%clk 00:07:55]} {[%emt 00:04:50]} 14.
axb5 {[%clk 00:12:18]} {[%emt 00:00:52]} fxe5 {[%clk 00:07:17]} {[%emt
00:00:43]} 15. dxe5 {[%clk 00:11:02]} {[%emt 00:01:21]} Kf7 {[%clk 00:06:58]}
{[%emt 00:00:24]} 16. Ra7 {[%clk 00:10:48]} {[%emt 00:00:20]} Ne7 {[%clk
00:05:18]} {[%emt 00:01:44]} 17. Rxb7 {[%clk 00:10:37]} {[%emt 00:00:16]} Qe8
{[%clk 00:05:21]} {[%emt 00:00:02]} 18. Rb8 {[%clk 00:10:12]} {[%emt 00:00:30]}
Qd7 {[%clk 00:05:09]} {[%emt 00:00:17]} 19. Bg5 {[%clk 00:08:54]} {[%emt
00:01:22]} d4 {[%clk 00:04:15]} {[%emt 00:00:59]} 20. Rb7 {[%clk 00:07:26]}
{[%emt 00:01:33]} Qe8 {[%clk 00:04:08]} {[%emt 00:00:14]} 21. Qxe8+ {[%clk
00:07:07]} {[%emt 00:00:23]} Kxe8 {[%clk 00:04:11]} {[%emt 00:00:02]} 22. Ne2
{[%clk 00:07:01]} {[%emt 00:00:10]} d3 {[%clk 00:02:51]} {[%emt 00:01:26]} 23.
Nd4 {[%clk 00:06:21]} {[%emt 00:00:45]} Be4 {[%clk 00:02:53]} {[%emt 00:00:03]}
24. Rb8+ {[%clk 00:06:22]} {[%emt 00:00:04]} Kf7 {[%clk 00:02:48]} {[%emt
00:00:10]} 25. O-O {[%clk 00:06:08]} {[%emt 00:00:19]} h6 {[%clk 00:02:36]}
{[%emt 00:00:17]} 26. Bxe7 {[%clk 00:06:04]} {[%emt 00:00:08]} Kxe7 {[%clk
00:02:38]} {[%emt 00:00:03]} 27. Ra1 {[%clk 00:06:06]} {[%emt 00:00:04]} Kf7
{[%clk 00:01:56]} {[%emt 00:00:47]} 28. Nc6 {[%clk 00:05:27]} {[%emt 00:00:44]}
Kg6 {[%clk 00:01:29]} {[%emt 00:00:32]} 29. Kf1 {[%clk 00:04:25]} {[%emt
00:01:07]} Kf5 {[%clk 00:00:56]} {[%emt 00:00:38]} 30. Raa8 {[%clk 00:04:16]}
{[%emt 00:00:14]} Bb4 {[%clk 00:00:14]} {[%emt 00:00:47]} 31. Rxh8 {[%clk
00:03:33]} {[%emt 00:00:48]} d2 {[%clk 00:00:13]} {[%emt 00:00:06]} 32. Ke2
{[%clk 00:03:34]} {[%emt 00:00:04]} Bd3+ {[%clk 00:00:15]} {[%emt 00:00:03]} 33.
Kd1 {[%clk 00:03:36]} {[%emt 00:00:02]} Bc4 {[%clk 00:00:17]} {[%emt 00:00:03]}
34. Rhd8 {[%clk 00:03:31]} {[%emt 00:00:11]} Bb3+ {[%clk 00:00:20]} {[%emt
00:00:02]} 35. Ke2 {[%clk 00:03:34]} Bc4+ {[%clk 00:00:24]} {[%emt 00:00:02]}
36. Kf3 {[%clk 00:03:13]} {[%emt 00:00:25]} Bd5+ {[%clk 00:00:27]} {[%emt
00:00:03]} 37. Rxd5 {[%clk 00:03:17]} {[%emt 00:00:01]} exd5 {[%clk 00:00:30]}
{[%emt 00:00:02]} 38. Ke2 {[%clk 00:03:16]} {[%emt 00:00:05]} Bc5 {[%clk
00:00:33]} {[%emt 00:00:02]} 39. Kxd2 {[%clk 00:03:10]} {[%emt 00:00:10]} g5
{[%clk 00:00:30]} {[%emt 00:00:09]} 40. b4 {[%clk 00:03:00]} {[%emt 00:00:15]}
1-0

[Event "The Kvibergspelen 2024"]
[Site "Kviberg Park Hotel & Conference, Krutvagen 2, Gothenburg, Sweden"]
[Date "2024.09.06"]
[Round "1.13"]
[White "Kleist, Axel"]
[Black "Rajcevski, Dejan"]
[Result "0-1"]
[TimeControl "15 minutes + 5 seconds per move from move one (Round 1 - 4) / 90 minutes + 30 seconds per move from move one (Round 5 - 8)"]
[WhiteFideId "1764322"]
[BlackFideId "1759027"]
[WhiteElo "1855"]
[BlackElo "2131"]

1. e4 {[%clk 00:15:08]} {[%emt 00:00:01]} c5 {[%clk 00:15:06]} {[%emt
00:00:04]} 2. a3 {[%clk 00:15:08]} {[%emt 00:00:05]} d6 {[%clk 00:15:08]}
{[%emt 00:00:02]} 3. Bc4 {[%clk 00:15:02]} {[%emt 00:00:12]} e6 {[%clk
00:14:54]} {[%emt 00:00:20]} 4. Nc3 {[%clk 00:15:05]} {[%emt 00:00:01]} Nf6
{[%clk 00:14:57]} {[%emt 00:00:03]} 5. f4 {[%clk 00:14:52]} {[%emt 00:00:17]}
a6 {[%clk 00:14:54]} {[%emt 00:00:08]} 6. d3 {[%clk 00:14:23]} {[%emt
00:00:34]} b5 {[%clk 00:14:45]} {[%emt 00:00:14]} 7. Ba2 {[%clk 00:14:25]}
{[%emt 00:00:04]} Bb7 {[%clk 00:14:48]} {[%emt 00:00:01]} 8. Nf3 {[%clk
00:14:26]} {[%emt 00:00:04]} Be7 {[%clk 00:14:45]} {[%emt 00:00:07]} 9. O-O
{[%clk 00:14:22]} {[%emt 00:00:10]} O-O {[%clk 00:14:46]} {[%emt 00:00:04]} 10.
Qe1 {[%clk 00:13:35]} {[%emt 00:00:54]} Nc6 {[%clk 00:14:08]} {[%emt 00:00:42]}
11. h3 {[%clk 00:13:06]} {[%emt 00:00:35]} Re8 {[%clk 00:12:03]} {[%emt
00:02:09]} 12. g4 {[%clk 00:12:05]} {[%emt 00:01:05]} d5 {[%clk 00:11:11]}
{[%emt 00:00:58]} 13. e5 {[%clk 00:09:00]} {[%emt 00:03:09]} Nd7 {[%clk
00:11:04]} {[%emt 00:00:11]} 14. Qg3 {[%clk 00:07:35]} {[%emt 00:01:31]} b4
{[%clk 00:07:16]} {[%emt 00:03:53]} 15. axb4 {[%clk 00:07:33]} {[%emt
00:00:07]} Nxb4 {[%clk 00:07:13]} {[%emt 00:00:08]} 16. Bb1 {[%clk 00:07:36]}
{[%emt 00:00:02]} Bf8 {[%clk 00:05:02]} {[%emt 00:02:16]} 17. Nd1 {[%clk
00:06:17]} {[%emt 00:01:25]} d4 {[%clk 00:04:54]} {[%emt 00:00:12]} 18. c3
{[%clk 00:04:07]} {[%emt 00:02:15]} Nd5 {[%clk 00:04:45]} {[%emt 00:00:15]} 19.
c4 {[%clk 00:02:51]} {[%emt 00:01:20]} Nb4 {[%clk 00:04:33]} {[%emt 00:00:17]}
20. Nf2 {[%clk 00:02:41]} {[%emt 00:00:15]} Qc7 {[%clk 00:04:17]} {[%emt
00:00:22]} 21. g5 {[%clk 00:02:29]} {[%emt 00:00:17]} Be7 {[%clk 00:03:03]}
{[%emt 00:01:18]} 22. Ng4 {[%clk 00:02:07]} {[%emt 00:00:27]} Kh8 {[%clk
00:01:46]} {[%emt 00:01:22]} 23. Rf2 {[%clk 00:01:24]} {[%emt 00:00:48]} f5
{[%clk 00:01:49]} {[%emt 00:00:02]} 24. gxf6 {[%clk 00:00:56]} {[%emt
00:00:32]} gxf6 {[%clk 00:01:53]} {[%emt 00:00:02]} 25. Rg2 {[%clk 00:00:22]}
{[%emt 00:00:40]} Rg8 {[%clk 00:01:36]} {[%emt 00:00:21]} 26. Qh4 {[%clk
00:00:10]} {[%emt 00:00:18]} Bxf3 {[%clk 00:01:30]} {[%emt 00:00:10]} 27. exf6
{[%clk 00:00:08]} {[%emt 00:00:08]} Nxf6 {[%clk 00:01:15]} {[%emt 00:00:19]} 28.
Nxf6 {[%clk 00:00:07]} {[%emt 00:00:06]} Rxg2+ {[%clk 00:01:14]} {[%emt
00:00:06]} 29. Kf1 {[%clk 00:00:11]} {[%emt 00:00:01]} Bxf6 {[%clk 00:01:07]}
{[%emt 00:00:13]} 30. Qxf6+ {[%clk 00:00:14]} {[%emt 00:00:02]} Qg7 {[%clk
00:01:11]} {[%emt 00:00:01]} 0-1

[Event "The Kvibergspelen 2024"]
[Site "Kviberg Park Hotel & Conference, Krutvagen 2, Gothenburg, Sweden"]
[Date "2024.09.06"]
[Round "1.14"]
[White "Nilsson, Patrik"]
[Black "Lindholm, Marcus"]
[Result "1-0"]
[TimeControl "15 minutes + 5 seconds per move from move one (Round 1 - 4) / 90 minutes + 30 seconds per move from move one (Round 5 - 8)"]
[WhiteFideId "1708171"]
[BlackFideId "1743473"]
[WhiteElo "2124"]
[BlackElo "1853"]

1. d4 {[%clk 00:15:06]} {[%emt 00:00:02]} d5 {[%clk 00:15:09]} {[%emt
00:00:02]} 2. Bf4 {[%clk 00:14:55]} {[%emt 00:00:16]} Nf6 {[%clk 00:15:11]}
{[%emt 00:00:04]} 3. e3 {[%clk 00:14:59]} {[%emt 00:00:01]} e6 {[%clk
00:15:01]} {[%emt 00:00:14]} 4. Nd2 {[%clk 00:15:02]} {[%emt 00:00:02]} c5
{[%clk 00:15:04]} {[%emt 00:00:02]} 5. c3 {[%clk 00:15:04]} {[%emt 00:00:03]}
Nc6 {[%clk 00:15:07]} {[%emt 00:00:02]} 6. Ngf3 {[%clk 00:15:05]} {[%emt
00:00:04]} h6 {[%clk 00:14:52]} {[%emt 00:00:20]} 7. Ne5 {[%clk 00:14:23]}
{[%emt 00:00:47]} cxd4 {[%clk 00:13:22]} {[%emt 00:01:36]} 8. exd4 {[%clk
00:14:16]} {[%emt 00:00:11]} Qb6 {[%clk 00:13:16]} {[%emt 00:00:12]} 9. Qb3
{[%clk 00:13:47]} {[%emt 00:00:34]} Be7 {[%clk 00:10:04]} {[%emt 00:03:17]} 10.
Qxb6 {[%clk 00:13:05]} {[%emt 00:00:47]} axb6 {[%clk 00:10:07]} {[%emt
00:00:02]} 11. Bd3 {[%clk 00:12:26]} {[%emt 00:00:44]} O-O {[%clk 00:09:55]}
{[%emt 00:00:17]} 12. O-O {[%clk 00:12:24]} {[%emt 00:00:06]} Ne8 {[%clk
00:08:38]} {[%emt 00:01:22]} 13. Bb5 {[%clk 00:09:55]} {[%emt 00:02:34]} Nxe5
{[%clk 00:08:34]} {[%emt 00:00:11]} 14. Bxe5 {[%clk 00:09:49]} {[%emt
00:00:10]} Nd6 {[%clk 00:08:34]} {[%emt 00:00:04]} 15. Bd3 {[%clk 00:09:41]}
{[%emt 00:00:14]} Bd7 {[%clk 00:08:20]} {[%emt 00:00:18]} 16. c4 {[%clk
00:06:51]} {[%emt 00:02:56]} dxc4 {[%clk 00:07:37]} {[%emt 00:00:48]} 17. Nxc4
{[%clk 00:06:54]} {[%emt 00:00:02]} Nxc4 {[%clk 00:07:40]} {[%emt 00:00:02]} 18.
Bxc4 {[%clk 00:06:57]} {[%emt 00:00:02]} Rfc8 {[%clk 00:07:05]} {[%emt
00:00:40]} 19. Rfc1 {[%clk 00:06:25]} {[%emt 00:00:36]} b5 {[%clk 00:06:49]}
{[%emt 00:00:22]} 20. Bb3 {[%clk 00:06:29]} {[%emt 00:00:01]} Rxc1+ {[%clk
00:05:28]} {[%emt 00:01:25]} 21. Rxc1 {[%clk 00:06:32]} {[%emt 00:00:02]} Bc6
{[%clk 00:05:32]} {[%emt 00:00:02]} 22. Rc2 {[%clk 00:05:40]} {[%emt 00:00:57]}
Rd8 {[%clk 00:05:08]} {[%emt 00:00:28]} 23. Rd2 {[%clk 00:04:49]} {[%emt
00:00:56]} Bd6 {[%clk 00:04:13]} {[%emt 00:01:00]} 24. Bxd6 {[%clk 00:03:58]}
{[%emt 00:00:57]} Rxd6 {[%clk 00:04:15]} {[%emt 00:00:02]} 25. f3 {[%clk
00:03:54]} {[%emt 00:00:10]} Kf8 {[%clk 00:03:07]} {[%emt 00:01:12]} 26. Kf2
{[%clk 00:03:57]} {[%emt 00:00:02]} Ke7 {[%clk 00:03:10]} {[%emt 00:00:03]} 27.
Ke3 {[%clk 00:03:49]} {[%emt 00:00:12]} Kd7 {[%clk 00:03:07]} {[%emt 00:00:09]}
28. Bc2 {[%clk 00:03:37]} {[%emt 00:00:17]} Bd5 {[%clk 00:02:58]} {[%emt
00:00:13]} 29. b3 {[%clk 00:03:34]} {[%emt 00:00:09]} Bc6 {[%clk 00:02:49]}
{[%emt 00:00:14]} 30. Bd3 {[%clk 00:03:15]} {[%emt 00:00:24]} Ke7 {[%clk
00:02:20]} {[%emt 00:00:33]} 31. Rc2 {[%clk 00:03:13]} {[%emt 00:00:07]} Kd7
{[%clk 00:01:52]} {[%emt 00:00:33]} 32. Rc5 {[%clk 00:02:57]} {[%emt 00:00:21]}
Rd5 {[%clk 00:01:55]} {[%emt 00:00:02]} 33. Be4 {[%clk 00:02:20]} {[%emt
00:00:43]} Rxc5 {[%clk 00:01:56]} {[%emt 00:00:04]} 34. dxc5 {[%clk 00:02:23]}
{[%emt 00:00:02]} Bxe4 {[%clk 00:01:46]} {[%emt 00:00:15]} 35. Kxe4 {[%clk
00:02:16]} {[%emt 00:00:12]} Kc6 {[%clk 00:01:40]} {[%emt 00:00:11]} 36. b4
{[%clk 00:02:04]} {[%emt 00:00:16]} Kd7 {[%clk 00:00:58]} {[%emt 00:00:48]} 37.
f4 {[%clk 00:01:45]} {[%emt 00:00:24]} Ke7 {[%clk 00:00:41]} {[%emt 00:00:22]}
38. Ke5 {[%clk 00:01:03]} {[%emt 00:00:47]} f6+ {[%clk 00:00:33]} {[%emt
00:00:13]} 39. Kd4 {[%clk 00:00:57]} {[%emt 00:00:12]} Kd7 {[%clk 00:00:31]}
{[%emt 00:00:05]} 40. g4 {[%clk 00:00:36]} {[%emt 00:00:26]} g6 {[%clk
00:00:21]} {[%emt 00:00:16]} 41. h4 {[%clk 00:00:29]} {[%emt 00:00:12]} h5
{[%clk 00:00:18]} {[%emt 00:00:08]} 42. g5 {[%clk 00:00:21]} {[%emt 00:00:13]}
Ke7 {[%clk 00:00:16]} {[%emt 00:00:07]} 43. gxf6+ {[%clk 00:00:09]} {[%emt
00:00:18]} Kxf6 {[%clk 00:00:18]} {[%emt 00:00:02]} 44. Ke4 {[%clk 00:00:13]}
{[%emt 00:00:01]} Kf7 {[%clk 00:00:19]} {[%emt 00:00:03]} 45. Ke5 {[%clk
00:00:17]} {[%emt 00:00:02]} Ke7 {[%clk 00:00:23]} 46. a3 {[%clk 00:00:21]}
{[%emt 00:00:02]} Kf7 {[%clk 00:00:14]} {[%emt 00:00:14]} 47. Kd6 {[%clk
00:00:21]} {[%emt 00:00:04]} Kf6 {[%clk 00:00:17]} {[%emt 00:00:01]} 48. Kc7
{[%clk 00:00:25]} {[%emt 00:00:02]} Kf5 {[%clk 00:00:20]} {[%emt 00:00:02]} 49.
Kxb7 {[%clk 00:00:29]} {[%emt 00:00:02]} Kxf4 {[%clk 00:00:24]} {[%emt
00:00:01]} 50. c6 {[%clk 00:00:33]} e5 {[%clk 00:00:27]} {[%emt 00:00:02]} 51.
c7 {[%clk 00:00:37]} {[%emt 00:00:01]} 1-0

[Event "The Kvibergspelen 2024"]
[Site "Kviberg Park Hotel & Conference, Krutvagen 2, Gothenburg, Sweden"]
[Date "2024.09.06"]
[Round "1.15"]
[White "Lehtonen, Ture"]
[Black "Berling, Egil"]
[Result "1-0"]
[TimeControl "15 minutes + 5 seconds per move from move one (Round 1 - 4) / 90 minutes + 30 seconds per move from move one (Round 5 - 8)"]
[WhiteFideId "1712446"]
[BlackFideId "1781197"]
[WhiteElo "2099"]
[BlackElo "1837"]

1. d4 {[%clk 00:15:06]} {[%emt 00:00:04]} d5 {[%clk 00:15:09]} {[%emt
00:00:01]} 2. Nf3 {[%clk 00:15:05]} {[%emt 00:00:06]} Nf6 {[%clk 00:15:11]}
{[%emt 00:00:03]} 3. g3 {[%clk 00:15:04]} {[%emt 00:00:06]} e6 {[%clk
00:15:05]} {[%emt 00:00:10]} 4. Bg2 {[%clk 00:15:08]} b5 {[%clk 00:15:06]}
{[%emt 00:00:05]} 5. O-O {[%clk 00:15:05]} {[%emt 00:00:09]} Bb7 {[%clk
00:15:10]} {[%emt 00:00:03]} 6. a4 {[%clk 00:15:06]} {[%emt 00:00:02]} b4
{[%clk 00:15:13]} {[%emt 00:00:02]} 7. a5 {[%clk 00:15:04]} {[%emt 00:00:08]}
a6 {[%clk 00:14:16]} {[%emt 00:01:02]} 8. c3 {[%clk 00:14:29]} {[%emt
00:00:39]} bxc3 {[%clk 00:14:04]} {[%emt 00:00:17]} 9. bxc3 {[%clk 00:14:19]}
{[%emt 00:00:12]} Nbd7 {[%clk 00:13:53]} {[%emt 00:00:20]} 10. Qa4 {[%clk
00:13:48]} {[%emt 00:00:35]} Bd6 {[%clk 00:12:52]} {[%emt 00:01:05]} 11. Ne5
{[%clk 00:13:06]} {[%emt 00:00:48]} O-O {[%clk 00:12:34]} {[%emt 00:00:23]} 12.
Nc6 {[%clk 00:13:03]} {[%emt 00:00:08]} Qe8 {[%clk 00:12:20]} {[%emt 00:00:19]}
13. c4 {[%clk 00:12:08]} {[%emt 00:01:00]} Nb6 {[%clk 00:11:33]} {[%emt
00:00:52]} 14. axb6 {[%clk 00:11:51]} {[%emt 00:00:22]} Bxc6 {[%clk 00:11:35]}
{[%emt 00:00:03]} 15. Qa5 {[%clk 00:10:55]} {[%emt 00:01:01]} dxc4 {[%clk
00:11:12]} {[%emt 00:00:29]} 16. b7 {[%clk 00:10:19]} {[%emt 00:00:41]} Bxg2
{[%clk 00:10:45]} {[%emt 00:00:31]} 17. bxa8=Q {[%clk 00:09:53]} {[%emt
00:00:31]} Qxa8 {[%clk 00:09:01]} {[%emt 00:01:50]} 18. Re1 {[%clk 00:09:41]}
{[%emt 00:00:16]} Bh3 {[%clk 00:08:55]} {[%emt 00:00:11]} 19. f3 {[%clk
00:09:41]} {[%emt 00:00:05]} Rb8 {[%clk 00:08:39]} {[%emt 00:00:21]} 20. Ba3
{[%clk 00:09:34]} {[%emt 00:00:11]} Rb5 {[%clk 00:06:47]} {[%emt 00:01:58]} 21.
Qc3 {[%clk 00:09:26]} {[%emt 00:00:13]} Qd5 {[%clk 00:06:29]} {[%emt 00:00:23]}
22. Nd2 {[%clk 00:08:27]} {[%emt 00:01:03]} e5 {[%clk 00:04:22]} {[%emt
00:02:13]} 23. Bxd6 {[%clk 00:08:28]} {[%emt 00:00:04]} exd4 {[%clk 00:04:08]}
{[%emt 00:00:19]} 24. Qxc4 {[%clk 00:08:28]} {[%emt 00:00:05]} Qxd6 {[%clk
00:04:02]} {[%emt 00:00:11]} 25. Rec1 {[%clk 00:07:19]} {[%emt 00:01:14]} Rb2
{[%clk 00:03:16]} {[%emt 00:00:51]} 26. Rxa6 {[%clk 00:06:43]} {[%emt
00:00:41]} Qe7 {[%clk 00:03:18]} {[%emt 00:00:03]} 27. Ra8+ {[%clk 00:06:31]}
{[%emt 00:00:17]} Ne8 {[%clk 00:03:21]} {[%emt 00:00:02]} 28. Ne4 {[%clk
00:06:12]} {[%emt 00:00:24]} h6 {[%clk 00:02:33]} {[%emt 00:00:53]} 29. Qxd4
{[%clk 00:05:41]} {[%emt 00:00:36]} Rxe2 {[%clk 00:02:34]} {[%emt 00:00:04]} 30.
Qd8 {[%clk 00:05:16]} {[%emt 00:00:30]} Rxe4 {[%clk 00:02:11]} {[%emt
00:00:28]} 31. fxe4 {[%clk 00:05:06]} 1-0